[Event "7th Iberoamerican-ch 2019"]
[Site "Linares"]
[Date "2019.08.10"]
[Round "1.22"]
[White "Riquelme Valero, Manuel Damian"]
[Black "Moreno Ruiz, Javier"]
[Result "1/2-1/2"]
[ECO "E71"]
[WhiteElo "2157"]
[BlackElo "2473"]
[Annotator "ChessBase"]
[PlyCount "79"]
[EventDate "2019.08.10"]
[EventType "swiss"]
[EventCountry "ESP"]
[SourceTitle "playchess.com"]
[Source "ChessBase"]
[SourceQuality "1"]
[TimeControl "5400+30"]

1. d4 {[%emt 0:00:00]} Nf6 {[%emt 0:00:07]} 2. c4 {[%emt 0:00:24]} g6 {[%emt 0:00:28]} 3. Nc3 {[%emt 0:00:40]} Bg7 {[%emt 0:00:14]} 4. e4 {[%emt 0:00:11]} d6 {[%emt 0:00:04]} 5. h3 {[%emt 0:01:50]} O-O {[%emt 0:00:15]} 6. Bg5 {[%emt 0:00:09]} c5 {[%emt 0:01:33]} 7. d5 {[%emt 0:00:44]} e6 {[%emt 0:00:28]} 8. Bd3 {[%emt 0:01:45]} exd5 {[%emt 0:00:31]} 9. exd5 {[%emt 0:00:54]} Nbd7 {[%emt 0:01:29]} 10. Nf3 {[%emt 0:02:08]} Re8+ {[%emt 0:00:37]} 11. Kf1 {[%emt 0:00:28]} Ne5 {[%emt 0:01:40]} 12. Nxe5 {[%emt 0:00:20]} Rxe5 {[%emt 0:00:14]} 13. Bf4 {[%emt 0:03:25]} Re8 {[%emt 0:06:11]} 14. g4 {[%emt 0:05:24]} a6 {[%emt 0:02:34]} 15. a4 {[%emt 0:02:53]} h5 {[%emt 0:11:57]} 16. f3 {[%emt 0:07:19]} Nd7 {[%emt 0:07:29]} 17. Kg2 {[%emt 0:12:03]} Ne5 {[%emt 0:02:34]} 18. Qd2 {[%emt 0:05:20]} b6 {[%emt 0:12:31]} 19. Rae1 {[%emt 0:11:18]} Ra7 {[%emt 0:01:02]} 20. Re2 {[%emt 0:00:36]} Rae7 {[%emt 0:04:36]} 21. Rhe1 {[%emt 0:01:58]} hxg4 {[%emt 0:11:01]} 22. hxg4 {[%emt 0:01:44]} Nxd3 {[%emt 0:02:47]} 23. Qxd3 {[%emt 0:00:29]} Rxe2+ {[%emt 0:00:29]} 24. Rxe2 {[%emt 0:00:40]} Rxe2+ {[%emt 0:00:06]} 25. Qxe2 {[%emt 0:01:21]} f5 {[%emt 0:01:18]} 26. g5 {[%emt 0:01:35]} Kf7 {[%emt 0:00:28]} 27. Nd1 {[%emt 0:11:07]} Bd7 {[%emt 0:05:29]} 28. b3 {[%emt 0:01:09]} Qe7 {[%emt 0:08:19]} 29. Qxe7+ {[%emt 0:06:11]} Kxe7 {[%emt 0:00:04]} 30. Bd2 {[%emt 0:00:18]} b5 {[%emt 0:00:43]} 31. axb5 {[%emt 0:00:09]} axb5 {[%emt 0:00:04]} 32. Bc3 {[%emt 0:03:39]} Be5 {[%emt 0:01:41]} 33. Bxe5 {[%emt 0:04:18]} dxe5 {[%emt 0:00:04]} 34. Nb2 {[%emt 0:00:27]} Kd6 {[%emt 0:00:27]} 35. Kf2 {[%emt 0:01:51]} f4 {[%emt 0:09:42]} 36. Ke2 {[%emt 0:01:45]} Bf5 {[%emt 0:00:59]} 37. Nd3 {[%emt 0:01:18]} b4 {[%emt 0:01:23]} 38. Nf2 {[%emt 0:02:38]} Bc2 {[%emt 0:01:08]} 39. Ne4+ {[%emt 0:00:05]} Bxe4 {[%emt 0:00:07]} 40. fxe4 1/2-1/2

[Event "7th Iberoamerican-ch 2019"]
[Site "Linares"]
[Date "2019.08.10"]
[Round "1.23"]
[White "Del Rio De Angelis, Salvador G."]
[Black "Gomez Barrera, Javiera Belen"]
[Result "1-0"]
[ECO "E71"]
[WhiteElo "2464"]
[BlackElo "2156"]
[Annotator "ChessBase"]
[PlyCount "59"]
[EventDate "2019.08.10"]
[EventType "swiss"]
[EventCountry "ESP"]
[SourceTitle "playchess.com"]
[Source "ChessBase"]
[SourceQuality "1"]
[TimeControl "5400+30"]

1. d4 {[%emt 0:00:00]} Nf6 {[%emt 0:00:00]} 2. c4 {[%emt 0:00:00]} g6 {[%emt 0:00:09]} 3. Nc3 {[%emt 0:00:00]} Bg7 {[%emt 0:00:08]} 4. e4 {[%emt 0:00:09]} d6 {[%emt 0:00:42]} 5. h3 {[%emt 0:00:07]} O-O {[%emt 0:01:46]} 6. Be3 {[%emt 0:00:09]} Na6 {[%emt 0:02:06]} 7. g4 {[%emt 0:00:22]} c5 {[%emt 0:02:32]} 8. Nge2 {[%emt 0:00:37]} Rb8 {[%emt 0:07:09]} 9. Bg2 {[%emt 0:00:48]} b6 {[%emt 0:29:37]} 10. O-O {[%emt 0:03:27]} h5 {[%emt 0:08:35]} 11. f3 {[%emt 0:04:30]} Be6 {[%emt 0:03:29]} 12. b3 {[%emt 0:00:43]} Bd7 {[%emt 0:09:49]} 13. Qd2 {[%emt 0:01:34]} Qc8 {[%emt 0:04:09]} 14. Rad1 {[%emt 0:04:03]} Rd8 {[%emt 0:01:21]} 15. Nd5 {[%emt 0:01:16]} Nxd5 {[%emt 0:05:16]} 16. cxd5 {[%emt 0:00:11]} hxg4 {[%emt 0:01:23]} 17. hxg4 {[%emt 0:00:27]} Bb5 {[%emt 0:01:41]} 18. Rf2 {[%emt 0:02:23]} Bxe2 {[%emt 0:00:31]} 19. Qxe2 {[%emt 0:04:33]} cxd4 {[%emt 0:03:44]} 20. Bxd4 {[%emt 0:00:07]} Bxd4 {[%emt 0:00:53]} 21. Rxd4 {[%emt 0:00:08]} Qc1+ {[%emt 0:04:28]} 22. Rd1 {[%emt 0:00:25]} Qa3 {[%emt 0:05:16]} 23. Bf1 {[%emt 0:06:06]} Nb4 {[%emt 0:04:15]} 24. Qe3 {[%emt 0:01:23]} Kg7 {[%emt 0:01:58]} 25. g5 {[%emt 0:00:40]} Rbc8 {[%emt 0:00:55]} 26. e5 {[%emt 0:04:38]} Qa5 {[%emt 0:00:32]} 27. exd6 {[%emt 0:00:35]} Rxd6 {[%emt 0:00:32]} 28. Qe5+ {[%emt 0:01:52]} Kg8 {[%emt 0:00:29]} 29. Rh2 {[%emt 0:00:09]} Qc5+ {[%emt 0:00:28]} 30. Kh1 {[%emt 0:00:21]} 1-0

[Event "7th Iberoamerican-ch 2019"]
[Site "Linares"]
[Date "2019.08.10"]
[Round "1.24"]
[White "Fernandez Ayuso, Sergio"]
[Black "Roselli Mailhe, Bernardo"]
[Result "1-0"]
[ECO "A48"]
[WhiteElo "2173"]
[BlackElo "2471"]
[Annotator "ChessBase"]
[PlyCount "81"]
[EventDate "2019.08.10"]
[EventType "swiss"]
[EventCountry "ESP"]
[SourceTitle "playchess.com"]
[Source "ChessBase"]
[SourceQuality "1"]
[TimeControl "5400+30"]

1. d4 {[%emt 0:00:00]} Nf6 {[%emt 0:00:00]} 2. Nf3 {[%emt 0:00:00]} g6 {[%emt 0:00:00]} 3. Bf4 {[%emt 0:00:14]} Bg7 {[%emt 0:00:00]} 4. Nbd2 {[%emt 0:00:15]} O-O {[%emt 0:00:20]} 5. c3 {[%emt 0:00:18]} d6 {[%emt 0:00:09]} 6. h3 {[%emt 0:00:31]} c5 {[%emt 0:00:07]} 7. e3 {[%emt 0:00:04]} Nc6 {[%emt 0:00:19]} 8. Be2 {[%emt 0:00:27]} cxd4 {[%emt 0:00:07]} 9. cxd4 {[%emt 0:00:28]} e5 {[%emt 0:16:17]} 10. dxe5 {[%emt 0:15:02]} dxe5 {[%emt 0:00:07]} 11. Nxe5 {[%emt 0:00:39]} Nd5 {[%emt 0:00:06]} 12. Nxc6 {[%emt 0:00:04]} bxc6 {[%emt 0:00:05]} 13. Nc4 {[%emt 0:00:14]} Nxf4 {[%emt 0:06:45]} 14. exf4 {[%emt 0:00:44]} Qf6 {[%emt 0:00:38]} 15. O-O {[%emt 0:05:26]} Qxf4 {[%emt 0:01:04]} 16. Qc1 {[%emt 0:08:35]} Qf6 {[%emt 0:05:03]} 17. Rd1 {[%emt 0:02:44]} Be6 {[%emt 0:02:38]} 18. Rb1 {[%emt 0:05:36]} Qh4 {[%emt 0:10:01]} 19. b3 {[%emt 0:06:50]} Bd4 {[%emt 0:05:32]} 20. Ne3 {[%emt 0:00:25]} c5 {[%emt 0:00:11]} 21. Bc4 {[%emt 0:07:21]} Rfe8 {[%emt 0:00:58]} 22. Re1 {[%emt 0:05:55]} Rad8 {[%emt 0:20:10]} 23. Bxe6 {[%emt 0:09:05]} Rxe6 {[%emt 0:00:06]} 24. Ng4 {[%emt 0:00:07]} h5 {[%emt 0:03:41]} 25. Rxe6 {[%emt 0:04:05]} hxg4 {[%emt 0:00:19]} 26. Re3 {[%emt 0:09:37]} gxh3 {[%emt 0:08:29]} 27. Rxh3 {[%emt 0:00:52]} Qxf2+ {[%emt 0:00:06]} 28. Kh1 {[%emt 0:00:05]} Qxa2 {[%emt 0:00:38]} 29. Qf1 {[%emt 0:00:46]} a5 {[%emt 0:01:28]} 30. Re1 {[%emt 0:00:58]} Qc2 {[%emt 0:11:55]} 31. Qb5 {[%emt 0:02:04]} Qd2 {[%emt 0:04:05]} 32. Rf1 {[%emt 0:04:27]} Qb4 {[%emt 0:01:00]} 33. Qc6 {[%emt 0:02:34]} Qb8 {[%emt 0:00:32]} 34. Qe4 {[%emt 0:02:18]} Qe5 {[%emt 0:01:45]} 35. Qh4 {[%emt 0:00:18]} Rd7 {[%emt 0:00:10]} 36. Qh7+ {[%emt 0:00:35]} Kf8 {[%emt 0:00:05]} 37. Qxg6 {[%emt 0:00:43]} a4 {[%emt 0:01:40]} 38. Qc6 {[%emt 0:01:18]} Qd5 {[%emt 0:01:38]} 39. Qxa4 {[%emt 0:02:54]} Re7 {[%emt 0:00:16]} 40. Qa6 {[%emt 0:00:05]} Re6 {[%emt 0:00:55]} 41. Qd3 {[%emt 0:01:07]} 1-0

[Event "7th Iberoamerican-ch 2019"]
[Site "Linares"]
[Date "2019.08.10"]
[Round "1.25"]
[White "Larino Nieto, David"]
[Black "Garcia Paolicchi, Raul"]
[Result "1-0"]
[ECO "A06"]
[WhiteElo "2471"]
[BlackElo "2123"]
[Annotator "ChessBase"]
[PlyCount "103"]
[EventDate "2019.08.10"]
[EventType "swiss"]
[EventCountry "ESP"]
[SourceTitle "playchess.com"]
[Source "ChessBase"]
[SourceQuality "1"]
[TimeControl "5400+30"]

1. Nf3 {[%emt 0:00:47]} d5 {[%emt 0:00:00]} 2. b3 {[%emt 0:00:02]} c6 {[%emt 0:00:16]} 3. Bb2 {[%emt 0:00:11]} Bf5 {[%emt 0:00:34]} 4. d3 {[%emt 0:00:16]} Nf6 {[%emt 0:00:24]} 5. Nbd2 {[%emt 0:00:02]} e6 {[%emt 0:00:35]} 6. g3 {[%emt 0:00:22]} h6 {[%emt 0:00:30]} 7. Bg2 {[%emt 0:00:02]} Nbd7 {[%emt 0:00:47]} 8. O-O {[%emt 0:00:03]} Be7 {[%emt 0:00:21]} 9. e4 {[%emt 0:00:02]} dxe4 {[%emt 0:04:02]} 10. dxe4 {[%emt 0:00:19]} Bh7 {[%emt 0:00:30]} 11. Qe2 {[%emt 0:03:21]} O-O {[%emt 0:02:08]} 12. e5 {[%emt 0:00:16]} Nd5 {[%emt 0:01:27]} 13. c4 {[%emt 0:02:36]} N5b6 {[%emt 0:09:02]} 14. Ne4 {[%emt 0:00:44]} Qc7 {[%emt 0:00:27]} 15. Rfd1 {[%emt 0:00:12]} Nc8 {[%emt 0:12:41]} 16. Rd2 {[%emt 0:04:58]} Bxe4 {[%emt 0:17:59]} 17. Qxe4 {[%emt 0:08:04]} Nc5 {[%emt 0:00:30]} 18. Qc2 {[%emt 0:02:24]} Nb6 {[%emt 0:01:10]} 19. Rad1 {[%emt 0:02:13]} Rad8 {[%emt 0:00:31]} 20. Bc3 {[%emt 0:01:20]} Rxd2 {[%emt 0:02:07]} 21. Rxd2 {[%emt 0:00:02]} Rd8 {[%emt 0:00:53]} 22. a4 {[%emt 0:00:17]} Rxd2 {[%emt 0:02:23]} 23. Nxd2 {[%emt 0:09:06]} Na6 {[%emt 0:02:01]} 24. Ne4 {[%emt 0:01:45]} Nd7 {[%emt 0:03:08]} 25. f4 {[%emt 0:01:24]} Ndc5 {[%emt 0:06:27]} 26. Nxc5 {[%emt 0:01:43]} Bxc5+ {[%emt 0:00:24]} 27. Kf1 {[%emt 0:00:02]} Qe7 {[%emt 0:04:40]} 28. Bf3 {[%emt 0:00:46]} Bb4 {[%emt 0:01:12]} 29. Bb2 {[%emt 0:00:05]} Ba3 {[%emt 0:02:10]} 30. Ba1 {[%emt 0:00:06]} Qd7 {[%emt 0:02:05]} 31. Ke2 {[%emt 0:01:20]} Bc5 {[%emt 0:00:42]} 32. Bc3 {[%emt 0:00:36]} Qc7 {[%emt 0:01:20]} 33. Qd1 {[%emt 0:03:14]} Nb4 {[%emt 0:03:29]} 34. h4 Qb6 {[%emt 0:01:45]} 35. Be1 {[%emt 0:02:56]} a5 {[%emt 0:01:03]} 36. h5 {[%emt 0:00:43]} Bd4 {[%emt 0:03:50]} 37. Be4 {[%emt 0:01:50]} c5 {[%emt 0:02:07]} 38. Kf1 {[%emt 0:00:36]} Nc6 {[%emt 0:01:34]} 39. Qf3 {[%emt 0:00:09]} Nd8 {[%emt 0:03:15]} 40. Bc2 {[%emt 0:00:12]} Qc6 {[%emt 0:03:48]} 41. Qxc6 {[%emt 0:00:27]} Nxc6 {[%emt 0:00:13]} 42. Be4 {[%emt 0:00:04]} Nb4 {[%emt 0:00:47]} 43. Bxb7 {[%emt 0:00:03]} Kf8 {[%emt 0:01:35]} 44. Ke2 {[%emt 0:00:17]} f6 {[%emt 0:00:55]} 45. exf6 {[%emt 0:00:10]} gxf6 {[%emt 0:00:06]} 46. g4 {[%emt 0:00:18]} Kf7 {[%emt 0:00:45]} 47. Be4 {[%emt 0:00:13]} Kg7 {[%emt 0:00:24]} 48. Kf3 {[%emt 0:00:06]} Kf7 {[%emt 0:01:00]} 49. Bd2 {[%emt 0:00:02]} Kg7 {[%emt 0:00:20]} 50. Bb7 {[%emt 0:00:12]} Kf7 {[%emt 0:02:10]} 51. Ke4 {[%emt 0:00:02]} Ke7 {[%emt 0:00:29]} 52. f5 {[%emt 0:00:17]} 1-0

[Event "7th Iberoamerican-ch 2019"]
[Site "Linares"]
[Date "2019.08.10"]
[Round "1.26"]
[White "Vega Gutierrez, Belinda"]
[Black "Fluvia Poyatos, Jordi"]
[Result "1-0"]
[ECO "B10"]
[WhiteElo "2133"]
[BlackElo "2455"]
[Annotator "ChessBase"]
[PlyCount "119"]
[EventDate "2019.08.10"]
[EventType "swiss"]
[EventCountry "ESP"]
[SourceTitle "playchess.com"]
[Source "ChessBase"]
[SourceQuality "1"]
[TimeControl "5400+30"]

1. e4 {[%emt 0:00:00]} c6 {[%emt 0:00:00]} 2. Nc3 {[%emt 0:00:00]} d5 {[%emt 0:00:08]} 3. Qf3 {[%emt 0:00:06]} e6 {[%emt 0:02:20]} 4. Nh3 {[%emt 0:01:54]} Nf6 {[%emt 0:03:33]} 5. e5 {[%emt 0:02:12]} Ng8 {[%emt 0:02:40]} 6. d4 {[%emt 0:01:57]} b6 {[%emt 0:07:07]} 7. Bd3 {[%emt 0:06:01]} Qd7 {[%emt 0:15:08]} 8. Ng5 {[%emt 0:15:08]} h6 {[%emt 0:08:27]} 9. Qh5 {[%emt 0:02:48]} hxg5 {[%emt 0:17:47]} 10. Qxh8 {[%emt 0:00:11]} Ne7 {[%emt 0:00:59]} 11. Bxg5 {[%emt 0:01:22]} Ba6 {[%emt 0:00:16]} 12. O-O-O {[%emt 0:03:14]} c5 {[%emt 0:02:20]} 13. Bxe7 {[%emt 0:10:58]} Qxe7 {[%emt 0:01:05]} 14. Bb5+ {[%emt 0:08:04]} Bxb5 {[%emt 0:02:14]} 15. Nxb5 {[%emt 0:00:10]} Nc6 {[%emt 0:00:41]} 16. f4 {[%emt 0:14:23]} cxd4 {[%emt 0:01:18]} 17. Nxd4 {[%emt 0:07:30]} Na5 {[%emt 0:00:10]} 18. f5 {[%emt 0:06:59]} exf5 {[%emt 0:03:13]} 19. e6 {[%emt 0:02:39]} O-O-O {[%emt 0:00:44]} 20. Qh3 {[%emt 0:08:25]} g6 {[%emt 0:01:52]} 21. Rhe1 {[%emt 0:00:48]} f6 {[%emt 0:01:16]} 22. Qf3 {[%emt 0:02:34]} Qb7 {[%emt 0:11:41]} 23. Re2 {[%emt 0:00:30]} Nc4 {[%emt 0:00:47]} 24. h4 {[%emt 0:02:18]} Qa6 {[%emt 0:06:27]} 25. Kb1 {[%emt 0:00:10]} Ne5 {[%emt 0:00:11]} 26. Qb3 {[%emt 0:00:36]} Bc5 {[%emt 0:00:26]} 27. Qb5 {[%emt 0:00:52]} Qxb5 {[%emt 0:02:48]} 28. Nxb5 {[%emt 0:00:02]} a6 {[%emt 0:00:23]} 29. Nd4 {[%emt 0:00:39]} Kb7 {[%emt 0:02:18]} 30. Nf3 {[%emt 0:00:59]} Nc6 {[%emt 0:00:36]} 31. Red2 {[%emt 0:00:22]} Ne7 {[%emt 0:02:05]} 32. c4 {[%emt 0:00:27]} Kc7 {[%emt 0:00:03]} 33. cxd5 {[%emt 0:00:28]} Kd6 {[%emt 0:00:06]} 34. a3 {[%emt 0:00:16]} a5 {[%emt 0:00:04]} 35. Rd3 {[%emt 0:00:36]} f4 {[%emt 0:01:54]} 36. Kc2 {[%emt 0:01:18]} Rh8 {[%emt 0:00:40]} 37. Nd2 {[%emt 0:00:30]} Nf5 {[%emt 0:01:05]} 38. Nc4+ {[%emt 0:00:37]} Ke7 {[%emt 0:00:08]} 39. Kc3 {[%emt 0:00:45]} a4 {[%emt 0:01:44]} 40. d6+ {[%emt 0:00:35]} Kxe6 {[%emt 0:00:26]} 41. d7 {[%emt 0:00:03]} Rd8 {[%emt 0:00:14]} 42. Re1+ {[%emt 0:00:27]} Kf7 {[%emt 0:00:41]} 43. Rf1 {[%emt 0:00:38]} Nxh4 {[%emt 0:01:24]} 44. Rxf4 {[%emt 0:00:27]} g5 {[%emt 0:01:28]} 45. Re4 {[%emt 0:00:16]} Nxg2 {[%emt 0:00:45]} 46. Nd6+ {[%emt 0:00:34]} Bxd6 {[%emt 0:00:11]} 47. Rxd6 {[%emt 0:00:02]} Nf4 {[%emt 0:00:05]} 48. Kb4 {[%emt 0:00:26]} Ng6 {[%emt 0:01:02]} 49. Kb5 {[%emt 0:01:16]} Nf8 {[%emt 0:00:53]} 50. Kc6 {[%emt 0:00:14]} Nxd7 {[%emt 0:00:36]} 51. Rxd7+ {[%emt 0:00:20]} Rxd7 {[%emt 0:00:03]} 52. Kxd7 {[%emt 0:00:04]} f5 {[%emt 0:00:03]} 53. Re1 {[%emt 0:01:35]} g4 {[%emt 0:01:19]} 54. Kd6 {[%emt 0:00:10]} Kf6 {[%emt 0:00:03]} 55. Kd5 {[%emt 0:00:18]} Kg5 {[%emt 0:00:11]} 56. Ke5 {[%emt 0:01:00]} g3 {[%emt 0:00:38]} 57. Rf1 {[%emt 0:00:27]} Kg4 {[%emt 0:01:13]} 58. Rxf5 {[%emt 0:00:20]} g2 {[%emt 0:00:10]} 59. Rf8 {[%emt 0:00:04]} Kh3 {[%emt 0:00:07]} 60. Rg8 {[%emt 0:00:21]} 1-0

[Event "7th Iberoamerican-ch 2019"]
[Site "Linares"]
[Date "2019.08.10"]
[Round "1.27"]
[White "Zambrana, Oswaldo"]
[Black "Arroyo Rodriguez, Jesus"]
[Result "1-0"]
[ECO "B35"]
[WhiteElo "2440"]
[BlackElo "2121"]
[Annotator "NA"]
[PlyCount "61"]
[EventDate "2019.08.10"]
[EventType "swiss"]
[EventCountry "ESP"]
[SourceTitle "playchess.com"]
[Source "ChessBase"]
[SourceQuality "1"]
[TimeControl "5400+30"]

1. e4 {[%emt 0:00:00]} c5 {[%emt 0:00:00]} 2. Nf3 {[%emt 0:00:00]} g6 {[%emt 0:00:00]} 3. d4 {[%emt 0:00:00]} cxd4 {[%emt 0:00:00]} 4. Nxd4 {[%emt 0:00:03]} Bg7 {[%emt 0:00:02]} 5. Nc3 {[%emt 0:00:07]} Nc6 {[%emt 0:00:11]} 6. Be3 {[%emt 0:00:15]} Nf6 {[%emt 0:00:10]} 7. Bc4 {[%emt 0:00:11]} Qa5 {[%emt 0:00:24]} 8. O-O {[%emt 0:00:57]} O-O {[%emt 0:00:13]} 9. Nb3 {[%emt 0:04:14]} Qc7 {[%emt 0:00:54]} 10. Bg5 {[%emt 0:00:59]} e6 {[%emt 0:00:25]} 11. Be2 {[%emt 0:03:57]} a6 {[%emt 0:00:35]} 12. Qd2 {[%emt 0:04:36]} b5 {[%emt 0:02:46]} 13. a3 {[%emt 0:00:51]} d6 {[%emt 0:02:42]} 14. Rad1 {[%emt 0:02:26]} Rd8 {[%emt 0:02:49]} 15. Qf4 {[%emt 0:00:15]} Ne8 {[%emt 0:11:28]} 16. Qh4 {[%emt 0:08:47]} f6 {[%emt 0:08:46]} 17. Bh6 {[%emt 0:02:19]} Ne5 {[%emt 0:03:46]} 18. f4 {[%emt 0:02:07]} Nc4 {[%emt 0:03:21]} 19. Bxg7 {[%emt 0:02:15]} Kxg7 {[%emt 0:01:30]} 20. Bxc4 {[%emt 0:01:02]} bxc4 {[%emt 0:01:04]} 21. Nd4 {[%emt 0:00:06]} Rb8 {[%emt 0:08:32]} 22. f5 {[%emt 0:09:21]} g5 {[%emt 0:13:44]} 23. Qh3 {[%emt 0:08:30]} exf5 {[%emt 0:03:28]} 24. exf5 {[%emt 0:08:11]} Rxb2 {[%emt 0:07:05]} 25. Rfe1 {[%emt 0:06:07]} Qf7 {[%emt 0:01:15]} 26. Re2 {[%emt 0:04:08]} Nc7 {[%emt 0:00:41]} 27. Rde1 {[%emt 0:00:43]} Re8 {[%emt 0:03:36]} 28. Rxe8 {[%emt 0:09:35]} Nxe8 {[%emt 0:00:01]} 29. Nc6 {[%emt 0:00:22]} Kh8 {[%emt 0:05:34]} 30. Re7 {[%emt 0:01:36]} Qg8 {[%emt 0:00:12]} 31. Nd8 {[%emt 0:00:40]} 1-0

[Event "7th Iberoamerican-ch 2019"]
[Site "Linares"]
[Date "2019.08.10"]
[Round "1.28"]
[White "Carrasco Sagredo, Manuel"]
[Black "Huerga Leache, Mikel"]
[Result "0-1"]
[ECO "B31"]
[WhiteElo "2106"]
[BlackElo "2440"]
[Annotator "NA"]
[PlyCount "86"]
[EventDate "2019.08.10"]
[EventType "swiss"]
[EventCountry "ESP"]
[SourceTitle "playchess.com"]
[Source "ChessBase"]
[SourceQuality "1"]
[TimeControl "5400+30"]

1. e4 {[%emt 0:00:00]} c5 {[%emt 0:00:00]} 2. Nf3 {[%emt 0:00:00]} Nc6 {[%emt 0:00:04]} 3. Bb5 {[%emt 0:00:49]} g6 {[%emt 0:00:26]} 4. Bxc6 {[%emt 0:00:57]} bxc6 {[%emt 0:00:25]} 5. O-O {[%emt 0:03:45]} Bg7 {[%emt 0:00:06]} 6. Re1 {[%emt 0:00:24]} e5 {[%emt 0:02:59]} 7. b3 {[%emt 0:04:45]} d6 {[%emt 0:02:12]} 8. Bb2 {[%emt 0:04:47]} Ne7 {[%emt 0:05:59]} 9. Na3 {[%emt 0:05:03]} O-O {[%emt 0:01:41]} 10. Nc4 {[%emt 0:02:54]} f5 {[%emt 0:01:19]} 11. d3 {[%emt 0:07:09]} h6 {[%emt 0:01:38]} 12. Bc3 {[%emt 0:04:16]} g5 {[%emt 0:02:30]} 13. Ba5 {[%emt 0:00:08]} Qd7 {[%emt 0:00:41]} 14. c3 {[%emt 0:01:03]} Ng6 {[%emt 0:09:08]} 15. exf5 {[%emt 0:24:15]} Rxf5 {[%emt 0:01:21]} 16. d4 {[%emt 0:00:04]} exd4 {[%emt 0:05:42]} 17. cxd4 {[%emt 0:06:19]} g4 {[%emt 0:09:55]} 18. Nfd2 {[%emt 0:01:06]} Bxd4 {[%emt 0:03:26]} 19. Qxg4 {[%emt 0:01:48]} Qg7 {[%emt 0:09:05]} 20. Re8+ {[%emt 0:09:29]} Kh7 {[%emt 0:01:34]} 21. Rxc8 {[%emt 0:08:55]} Bxf2+ {[%emt 0:08:11]} 22. Kf1 {[%emt 0:00:23]} Qxa1+ {[%emt 0:00:27]} 23. Ke2 {[%emt 0:00:07]} Qe1+ {[%emt 0:02:34]} 24. Kd3 {[%emt 0:00:29]} Rxc8 {[%emt 0:03:09]} 25. Qxf5 {[%emt 0:00:05]} Rf8 {[%emt 0:00:18]} 26. Qd7+ {[%emt 0:04:34]} Qe7 {[%emt 0:00:21]} 27. Qxe7+ {[%emt 0:01:36]} Nxe7 {[%emt 0:00:02]} 28. Nxd6 {[%emt 0:00:10]} Nd5 {[%emt 0:01:43]} 29. N2e4 {[%emt 0:01:04]} Bg1 {[%emt 0:00:37]} 30. g3 {[%emt 0:01:01]} Bxh2 {[%emt 0:01:31]} 31. Nb7 {[%emt 0:00:38]} Bxg3 {[%emt 0:01:53]} 32. Nbxc5 {[%emt 0:00:35]} Bc7 {[%emt 0:01:55]} 33. Bd2 {[%emt 0:00:40]} Bb6 {[%emt 0:00:53]} 34. Ne6 {[%emt 0:01:07]} Re8 {[%emt 0:00:31]} 35. Nd4 {[%emt 0:00:12]} Bxd4 {[%emt 0:00:38]} 36. Kxd4 {[%emt 0:00:03]} Kg6 {[%emt 0:01:24]} 37. Nd6 {[%emt 0:01:19]} Re2 {[%emt 0:01:02]} 38. Kd3 {[%emt 0:00:06]} Re6 {[%emt 0:00:21]} 39. Nc4 {[%emt 0:02:53]} h5 {[%emt 0:00:14]} 40. Kd4 {[%emt 0:00:07]} h4 {[%emt 0:00:39]} 41. Ne5+ {[%emt 0:00:17]} Rxe5 {[%emt 0:00:18]} 42. Kxe5 {[%emt 0:00:09]} h3 {[%emt 0:00:02]} 43. Bf4 {[%emt 0:00:07]} Nxf4 {[%emt 0:00:04]} 0-1

[Event "7th Iberoamerican-ch 2019"]
[Site "Linares"]
[Date "2019.08.10"]
[Round "1.29"]
[White "Ladron De Guevara Pinto, Paolo"]
[Black "Luque Saiz, Andres"]
[Result "1-0"]
[ECO "B11"]
[WhiteElo "2416"]
[BlackElo "1988"]
[Annotator "NA"]
[PlyCount "93"]
[EventDate "2019.08.10"]
[EventType "swiss"]
[EventCountry "ESP"]
[SourceTitle "playchess.com"]
[Source "ChessBase"]
[SourceQuality "1"]
[TimeControl "5400+30"]

1. e4 {[%emt 0:00:23]} c6 {[%emt 0:00:00]} 2. Nc3 {[%emt 0:01:30]} d5 {[%emt 0:00:04]} 3. Nf3 {[%emt 0:00:14]} Bg4 {[%emt 0:00:19]} 4. h3 {[%emt 0:00:13]} Bxf3 {[%emt 0:00:15]} 5. Qxf3 {[%emt 0:00:14]} e6 {[%emt 0:01:06]} 6. Be2 {[%emt 0:03:53]} Nd7 {[%emt 0:03:34]} 7. O-O {[%emt 0:03:14]} Ngf6 {[%emt 0:02:19]} 8. d4 {[%emt 0:04:12]} dxe4 {[%emt 0:02:30]} 9. Nxe4 {[%emt 0:00:08]} Nxe4 {[%emt 0:00:53]} 10. Qxe4 {[%emt 0:00:08]} Nf6 {[%emt 0:02:51]} 11. Qe3 {[%emt 0:02:46]} Bd6 {[%emt 0:02:29]} 12. c4 {[%emt 0:00:28]} O-O {[%emt 0:01:35]} 13. b3 {[%emt 0:02:49]} Qd7 {[%emt 0:08:21]} 14. a4 {[%emt 0:02:53]} Rfd8 {[%emt 0:02:35]} 15. Bb2 {[%emt 0:00:09]} Qe7 {[%emt 0:01:40]} 16. Rfd1 {[%emt 0:08:13]} Rac8 {[%emt 0:03:00]} 17. Rd3 {[%emt 0:01:17]} b6 {[%emt 0:11:08]} 18. Rad1 {[%emt 0:02:55]} Nd7 {[%emt 0:03:27]} 19. Qd2 {[%emt 0:02:54]} Bb4 {[%emt 0:05:41]} 20. Qc1 {[%emt 0:02:07]} Kf8 {[%emt 0:11:11]} 21. Bf3 {[%emt 0:03:57]} c5 {[%emt 0:04:43]} 22. d5 {[%emt 0:01:08]} e5 {[%emt 0:07:29]} 23. d6 {[%emt 0:01:06]} Qf6 {[%emt 0:05:06]} 24. Bd5 {[%emt 0:00:46]} Qh4 {[%emt 0:02:17]} 25. Qe3 {[%emt 0:02:02]} Re8 {[%emt 0:02:20]} 26. Be4 {[%emt 0:00:34]} Rcd8 {[%emt 0:00:58]} 27. Bf5 {[%emt 0:02:27]} Qf6 {[%emt 0:02:47]} 28. Qe4 {[%emt 0:02:24]} g6 {[%emt 0:01:00]} 29. Bg4 {[%emt 0:01:48]} h5 {[%emt 0:02:08]} 30. Rf3 {[%emt 0:07:14]} Qg7 {[%emt 0:02:48]} 31. Bxd7 {[%emt 0:00:13]} Rxd7 {[%emt 0:00:03]} 32. Rd5 {[%emt 0:00:10]} Kg8 {[%emt 0:06:18]} 33. Rxe5 {[%emt 0:00:31]} Rxe5 {[%emt 0:00:31]} 34. Bxe5 {[%emt 0:00:07]} Qf8 {[%emt 0:00:02]} 35. Rf6 {[%emt 0:02:27]} Bd2 {[%emt 0:01:08]} 36. f4 {[%emt 0:00:09]} Kh7 {[%emt 0:00:52]} 37. Qe2 {[%emt 0:01:42]} Ba5 {[%emt 0:00:25]} 38. f5 {[%emt 0:02:05]} Qe8 {[%emt 0:00:23]} 39. Kf1 {[%emt 0:00:57]} a6 {[%emt 0:01:51]} 40. fxg6+ {[%emt 0:04:01]} fxg6 {[%emt 0:00:05]} 41. Bb2 {[%emt 0:00:33]} Qg8 {[%emt 0:01:29]} 42. Qf2 {[%emt 0:00:48]} Rd8 {[%emt 0:00:35]} 43. Rf7+ {[%emt 0:00:07]} Kh6 {[%emt 0:00:07]} 44. Qf4+ {[%emt 0:00:17]} g5 {[%emt 0:00:10]} 45. Rf6+ {[%emt 0:00:05]} Kh7 {[%emt 0:01:17]} 46. Qf5+ {[%emt 0:00:05]} Kh8 {[%emt 0:00:31]} 47. Rh6# 1-0